[Event "Early-Titled-Tuesday-Blitz-January-30-2024"]
[Site "Chess.com"]
[Date "2024.01.30"]
[Round "2"]
[White "Iana_Shirova"]
[Black "Dinamo3"]
[Result "0-1"]
[WhiteElo "2103"]
[BlackElo "2466"]
[TimeControl "180+1"]
[EndTime "8:17:56 PST"]
[Termination "Dinamo3 won on time"]

1. e4 {[%clk 0:00:20.3]} 1... g6 {[%clk 0:02:51.8]} 2. Nf3 {[%clk 0:00:21.2]}
2... Bg7 {[%clk 0:02:52.4]} 3. d4 {[%clk 0:00:20.2]} 3... d6 {[%clk 0:02:53]} 4.
c3 {[%clk 0:00:20.4]} 4... Nf6 {[%clk 0:02:52.7]} 5. Be2 {[%clk 0:00:21.3]} 5...
Nxe4 {[%clk 0:02:52.7]} 6. Be3 {[%clk 0:00:21.6]} 6... O-O {[%clk 0:02:52.2]} 7.
O-O {[%clk 0:00:21.7]} 7... c5 {[%clk 0:02:45.7]} 8. Nbd2 {[%clk 0:00:21.8]}
8... cxd4 {[%clk 0:02:43.5]} 9. cxd4 {[%clk 0:00:21.8]} 9... Bf5 {[%clk
0:02:35.4]} 10. Bd3 {[%clk 0:00:16.1]} 10... Nxd2 {[%clk 0:02:32.3]} 11. Qxd2
{[%clk 0:00:17]} 11... Bxd3 {[%clk 0:02:32.2]} 12. Qxd3 {[%clk 0:00:17.9]} 12...
d5 {[%clk 0:02:29.9]} 13. Rfc1 {[%clk 0:00:18.2]} 13... Nc6 {[%clk 0:02:30.3]}
14. a3 {[%clk 0:00:16.8]} 14... a5 {[%clk 0:02:29.2]} 15. b3 {[%clk 0:00:15.7]}
15... Qb6 {[%clk 0:02:28.5]} 16. Rab1 {[%clk 0:00:15.6]} 16... Rac8 {[%clk
0:02:28]} 17. Ne5 {[%clk 0:00:15.7]} 17... Rfd8 {[%clk 0:01:57.9]} 18. Nxc6
{[%clk 0:00:15]} 18... Rxc6 {[%clk 0:01:58]} 19. b4 {[%clk 0:00:15.7]} 19...
axb4 {[%clk 0:01:55.9]} 20. Rxb4 {[%clk 0:00:14.8]} 20... Rxc1+ {[%clk
0:01:52.7]} 21. Bxc1 {[%clk 0:00:15.7]} 21... Qc6 {[%clk 0:01:50.8]} 22. Be3
{[%clk 0:00:15.6]} 22... e6 {[%clk 0:01:45.6]} 23. Qb3 {[%clk 0:00:11.6]} 23...
Rd7 {[%clk 0:01:42.2]} 24. a4 {[%clk 0:00:10.8]} 24... Bf8 {[%clk 0:01:38.8]}
25. Rb6 {[%clk 0:00:06.2]} 25... Qc8 {[%clk 0:01:29.8]} 26. a5 {[%clk
0:00:06.8]} 26... Bd6 {[%clk 0:01:25.9]} 27. h3 {[%clk 0:00:07.7]} 27... Qa8
{[%clk 0:01:17.7]} 28. Rb5 {[%clk 0:00:08.6]} 28... Rc7 {[%clk 0:01:11.8]} 29.
g3 {[%clk 0:00:09.1]} 29... h5 {[%clk 0:01:11.4]} 0-1

[Event "Early-Titled-Tuesday-Blitz-January-30-2024"]
[Site "Chess.com"]
[Date "2024.01.30"]
[Round "2"]
[White "Binary010"]
[Black "Grossboss19"]
[Result "1-0"]
[WhiteElo "2907"]
[BlackElo "2595"]
[TimeControl "180+1"]
[EndTime "8:18:02 PST"]
[Termination "Binary010 won by resignation"]

1. e4 {[%clk 0:03:00.9]} 1... e6 {[%clk 0:02:57.4]} 2. d4 {[%clk 0:02:59.5]}
2... d5 {[%clk 0:02:57.9]} 3. e5 {[%clk 0:02:57.2]} 3... c5 {[%clk 0:02:57.6]}
4. c3 {[%clk 0:02:57.8]} 4... Qb6 {[%clk 0:02:55.8]} 5. Nf3 {[%clk 0:02:58]}
5... Bd7 {[%clk 0:02:55.5]} 6. Be2 {[%clk 0:02:56.5]} 6... Bb5 {[%clk
0:02:55.6]} 7. O-O {[%clk 0:02:55.7]} 7... Bxe2 {[%clk 0:02:54.7]} 8. Qxe2
{[%clk 0:02:56.2]} 8... Qa6 {[%clk 0:02:53.8]} 9. Qe3 {[%clk 0:02:44.9]} 9...
Ne7 {[%clk 0:02:51.5]} 10. dxc5 {[%clk 0:02:39.7]} 10... Nf5 {[%clk 0:02:51.5]}
11. Qf4 {[%clk 0:02:39.8]} 11... Bxc5 {[%clk 0:02:49.4]} 12. g4 {[%clk
0:02:33.8]} 12... Ne7 {[%clk 0:02:47]} 13. b4 {[%clk 0:02:32.6]} 13... Ng6
{[%clk 0:02:45.6]} 14. Qg3 {[%clk 0:02:28.1]} 14... Be7 {[%clk 0:02:43.1]} 15.
Be3 {[%clk 0:02:22.2]} 15... Nd7 {[%clk 0:02:38.6]} 16. a4 {[%clk 0:02:16]}
16... Qd3 {[%clk 0:02:26.4]} 17. Na3 {[%clk 0:01:59.4]} 17... h5 {[%clk
0:02:09.7]} 18. Rfd1 {[%clk 0:01:39.3]} 18... Qe4 {[%clk 0:02:00.6]} 19. Rd4
{[%clk 0:01:36]} 19... h4 {[%clk 0:01:00.9]} 20. Qh3 {[%clk 0:01:26.9]} 20...
Rc8 {[%clk 0:00:40.7]} 21. Rxe4 {[%clk 0:01:24.5]} 21... dxe4 {[%clk 0:00:41]}
22. Nd2 {[%clk 0:01:21.4]} 22... Ndxe5 {[%clk 0:00:40.9]} 23. Nxe4 {[%clk
0:01:19.8]} 23... O-O {[%clk 0:00:40.3]} 24. f4 {[%clk 0:01:13.6]} 24... f5
{[%clk 0:00:36.1]} 25. gxf5 {[%clk 0:01:02.4]} 25... exf5 {[%clk 0:00:35.5]} 26.
fxe5 {[%clk 0:01:01.2]} 26... fxe4 {[%clk 0:00:35.5]} 27. Qg4 {[%clk 0:00:47.3]}
27... Rc6 {[%clk 0:00:22.4]} 28. Qxe4 {[%clk 0:00:40.6]} 28... Re6 {[%clk
0:00:20.4]} 29. Qd5 {[%clk 0:00:36.2]} 1-0

[Event "Early-Titled-Tuesday-Blitz-January-30-2024"]
[Site "Chess.com"]
[Date "2024.01.30"]
[Round "2"]
[White "Manukyan_Artak"]
[Black "VitaliyBernadskiy"]
[Result "0-1"]
[WhiteElo "2602"]
[BlackElo "2916"]
[TimeControl "180+1"]
[EndTime "8:18:09 PST"]
[Termination "VitaliyBernadskiy won on time"]

1. e4 {[%clk 0:02:56.8]} 1... c5 {[%clk 0:02:59.6]} 2. Nf3 {[%clk 0:02:56.5]}
2... d6 {[%clk 0:02:58.9]} 3. Bb5+ {[%clk 0:02:55.9]} 3... Nd7 {[%clk 0:02:59]}
4. O-O {[%clk 0:02:52.1]} 4... Nf6 {[%clk 0:02:59.1]} 5. Re1 {[%clk 0:02:51.7]}
5... a6 {[%clk 0:02:59.6]} 6. Bd3 {[%clk 0:02:50.8]} 6... b6 {[%clk 0:02:59.2]}
7. c3 {[%clk 0:02:50.9]} 7... Bb7 {[%clk 0:02:59.6]} 8. Bc2 {[%clk 0:02:51.3]}
8... Rc8 {[%clk 0:02:57.6]} 9. d4 {[%clk 0:02:50.1]} 9... e6 {[%clk 0:02:56.8]}
10. e5 {[%clk 0:02:47.8]} 10... dxe5 {[%clk 0:02:52.6]} 11. dxe5 {[%clk
0:02:48.7]} 11... Nd5 {[%clk 0:02:52.7]} 12. Nbd2 {[%clk 0:02:47.2]} 12... h6
{[%clk 0:02:51.7]} 13. Ne4 {[%clk 0:02:36]} 13... c4 {[%clk 0:02:52.1]} 14. h4
{[%clk 0:02:31.8]} 14... Nc5 {[%clk 0:02:51.9]} 15. Nxc5 {[%clk 0:02:30.4]}
15... Bxc5 {[%clk 0:02:52.8]} 16. Qe2 {[%clk 0:02:22.8]} 16... b5 {[%clk
0:02:51.7]} 17. a3 {[%clk 0:02:21.9]} 17... Qb6 {[%clk 0:02:50.9]} 18. h5 {[%clk
0:02:19.6]} 18... Ne7 {[%clk 0:02:49.9]} 19. Rf1 {[%clk 0:02:03.1]} 19... O-O
{[%clk 0:02:45.8]} 20. Be4 {[%clk 0:01:59.6]} 20... Rfd8 {[%clk 0:02:43.1]} 21.
Bxb7 {[%clk 0:01:52.5]} 21... Qxb7 {[%clk 0:02:44]} 22. Be3 {[%clk 0:01:49.9]}
22... Bxe3 {[%clk 0:02:33.4]} 23. Qxe3 {[%clk 0:01:50.8]} 23... Rd3 {[%clk
0:02:33.3]} 24. Qf4 {[%clk 0:01:46.4]} 24... Rcd8 {[%clk 0:02:31]} 25. Rae1
{[%clk 0:01:35.8]} 25... Nf5 {[%clk 0:02:28]} 26. Re2 {[%clk 0:01:14.2]} 26...
Qd5 {[%clk 0:02:25.5]} 27. Rfe1 {[%clk 0:01:12.3]} 27... a5 {[%clk 0:02:18.9]}
28. Nh4 {[%clk 0:01:10.2]} 28... Nxh4 {[%clk 0:02:16.4]} 29. Qxh4 {[%clk
0:01:11.1]} 29... Rd2 {[%clk 0:02:15.9]} 30. Qg4 {[%clk 0:01:00.2]} 30... Qd3
{[%clk 0:02:11.2]} 31. Rxd2 {[%clk 0:00:58]} 31... Qxd2 {[%clk 0:02:12.1]} 32.
Qe2 {[%clk 0:00:58.1]} 32... Qxe2 {[%clk 0:02:11.5]} 33. Rxe2 {[%clk 0:00:59]}
33... Rd1+ {[%clk 0:02:11.6]} 34. Kh2 {[%clk 0:00:59.1]} 34... Kf8 {[%clk
0:02:11.1]} 35. g4 {[%clk 0:00:53.1]} 35... a4 {[%clk 0:02:08.5]} 36. Kg2 {[%clk
0:00:45.6]} 36... Ke7 {[%clk 0:02:08.2]} 37. Kf3 {[%clk 0:00:31.1]} 37... Kd7
{[%clk 0:02:07.8]} 38. Ke3 {[%clk 0:00:31.1]} 38... Kc6 {[%clk 0:02:07.8]} 39.
f3 {[%clk 0:00:24.3]} 39... Kd5 {[%clk 0:02:06.3]} 40. Kf4 {[%clk 0:00:20.5]}
40... Rd3 {[%clk 0:02:03.3]} 41. Kg3 {[%clk 0:00:17.5]} 41... b4 {[%clk
0:02:01]} 42. axb4 {[%clk 0:00:16]} 42... a3 {[%clk 0:02:01]} 43. bxa3 {[%clk
0:00:16.7]} 43... Rxc3 {[%clk 0:02:01.5]} 44. Rd2+ {[%clk 0:00:12.8]} 44... Kxe5
{[%clk 0:01:59.3]} 45. Rd7 {[%clk 0:00:12.4]} 45... Rxa3 {[%clk 0:01:57.8]} 46.
Rxf7 {[%clk 0:00:12]} 46... c3 {[%clk 0:01:58.3]} 47. Rxg7 {[%clk 0:00:10.1]}
47... Kd6 {[%clk 0:01:54.9]} 48. Rg8 {[%clk 0:00:09.2]} 48... Ra7 {[%clk
0:01:54.9]} 49. Rd8+ {[%clk 0:00:09.1]} 49... Rd7 {[%clk 0:01:55]} 50. Rc8
{[%clk 0:00:08.4]} 50... Rc7 {[%clk 0:01:55.3]} 51. Rd8+ {[%clk 0:00:08.8]}
51... Ke5 {[%clk 0:01:55.6]} 52. Rd1 {[%clk 0:00:08.8]} 52... c2 {[%clk
0:01:56]} 53. f4+ {[%clk 0:00:04.4]} 53... Ke4 {[%clk 0:01:55.6]} 54. Rc1 {[%clk
0:00:04.4]} 54... Rc3+ {[%clk 0:01:55.5]} 55. Kh4 {[%clk 0:00:04.4]} 55... Kxf4
{[%clk 0:01:55.8]} 56. b5 {[%clk 0:00:04.8]} 56... Ke3 {[%clk 0:01:55.8]} 0-1

[Event "Early-Titled-Tuesday-Blitz-January-30-2024"]
[Site "Chess.com"]
[Date "2024.01.30"]
[Round "2"]
[White "ilya2700"]
[Black "masnyszachistaaa"]
[Result "0-1"]
[WhiteElo "2331"]
[BlackElo "2551"]
[TimeControl "180+1"]
[EndTime "8:18:09 PST"]
[Termination "masnyszachistaaa won by resignation"]

1. e4 {[%clk 0:03:00.3]} 1... c5 {[%clk 0:02:57]} 2. c4 {[%clk 0:03:00]} 2... e6
{[%clk 0:02:55.8]} 3. Ne2 {[%clk 0:02:59.8]} 3... d5 {[%clk 0:02:51.3]} 4. cxd5
{[%clk 0:02:57.6]} 4... exd5 {[%clk 0:02:52.2]} 5. exd5 {[%clk 0:02:58.1]} 5...
Nf6 {[%clk 0:02:52]} 6. Nbc3 {[%clk 0:02:58.9]} 6... Nxd5 {[%clk 0:02:51.6]} 7.
d4 {[%clk 0:02:58.8]} 7... Nxc3 {[%clk 0:02:50.6]} 8. bxc3 {[%clk 0:02:59.7]}
8... Be7 {[%clk 0:02:49.7]} 9. g3 {[%clk 0:02:57.7]} 9... Qd5 {[%clk 0:02:48.7]}
10. Rg1 {[%clk 0:02:48.4]} 10... O-O {[%clk 0:02:46.1]} 11. Bg2 {[%clk
0:02:48.3]} 11... Qf5 {[%clk 0:02:28.9]} 12. Be3 {[%clk 0:02:42.1]} 12... cxd4
{[%clk 0:02:24.3]} 13. Nxd4 {[%clk 0:02:35.3]} 13... Qa5 {[%clk 0:02:23]} 14.
Qc2 {[%clk 0:02:29.6]} 14... Nd7 {[%clk 0:02:21.9]} 15. Rd1 {[%clk 0:02:18.6]}
15... Nb6 {[%clk 0:02:20.3]} 16. Nb3 {[%clk 0:02:16.4]} 16... Qa4 {[%clk
0:02:05.8]} 17. Rd4 {[%clk 0:02:09]} 17... Qa3 {[%clk 0:02:02.6]} 18. Bc1 {[%clk
0:01:54.2]} 18... Qa6 {[%clk 0:01:35.3]} 19. Bf1 {[%clk 0:01:53.4]} 19... Bf5
{[%clk 0:01:35.3]} 20. Qb2 {[%clk 0:01:33]} 20... Na4 {[%clk 0:01:16.6]} 21. Qd2
{[%clk 0:01:05.8]} 21... Qc6 {[%clk 0:01:11.5]} 22. Rc4 {[%clk 0:01:02.2]} 22...
Qe6+ {[%clk 0:01:08.9]} 23. Be2 {[%clk 0:00:52.1]} 23... Nb6 {[%clk 0:01:07.5]}
24. Rd4 {[%clk 0:00:45.2]} 24... Bf6 {[%clk 0:01:03]} 25. Rd6 {[%clk 0:00:34.8]}
25... Qe7 {[%clk 0:00:57.3]} 26. c4 {[%clk 0:00:19]} 26... Nxc4 {[%clk
0:00:44.4]} 0-1

[Event "Early-Titled-Tuesday-Blitz-January-30-2024"]
[Site "Chess.com"]
[Date "2024.01.30"]
[Round "2"]
[White "SoyuzTM4"]
[Black "otrov-11"]
[Result "0-1"]
[WhiteElo "2196"]
[BlackElo "2501"]
[TimeControl "180+1"]
[EndTime "8:18:11 PST"]
[Termination "otrov-11 won on time"]

1. e4 {[%clk 0:03:00.9]} 1... e6 {[%clk 0:02:59.9]} 2. d4 {[%clk 0:03:00.2]}
2... d5 {[%clk 0:03:00.5]} 3. e5 {[%clk 0:02:57.9]} 3... c5 {[%clk 0:03:00.4]}
4. c3 {[%clk 0:02:57.7]} 4... Nc6 {[%clk 0:03:01.1]} 5. Nf3 {[%clk 0:02:57.4]}
5... Qb6 {[%clk 0:03:01.9]} 6. a3 {[%clk 0:02:57]} 6... c4 {[%clk 0:03:02.7]} 7.
g3 {[%clk 0:02:52]} 7... Bd7 {[%clk 0:03:02.2]} 8. Bg2 {[%clk 0:02:51.2]} 8...
Nge7 {[%clk 0:03:02.5]} 9. O-O {[%clk 0:02:50.7]} 9... h6 {[%clk 0:03:02]} 10.
h4 {[%clk 0:02:49.6]} 10... Na5 {[%clk 0:02:56.7]} 11. Nbd2 {[%clk 0:02:48.4]}
11... Nc8 {[%clk 0:02:55.1]} 12. Bh3 {[%clk 0:02:48]} 12... Qc7 {[%clk
0:02:52.1]} 13. Nh2 {[%clk 0:02:30.1]} 13... Nb6 {[%clk 0:02:46.3]} 14. f4
{[%clk 0:02:29.3]} 14... O-O-O {[%clk 0:02:40.6]} 15. Nhf3 {[%clk 0:02:28.5]}
15... f6 {[%clk 0:02:30.5]} 16. exf6 {[%clk 0:02:08]} 16... gxf6 {[%clk
0:02:31.4]} 17. Re1 {[%clk 0:02:08.8]} 17... Re8 {[%clk 0:02:04.4]} 18. Rb1
{[%clk 0:02:03.8]} 18... Rg8 {[%clk 0:01:49]} 19. Nf1 {[%clk 0:02:02.8]} 19...
Bd6 {[%clk 0:01:48.5]} 20. Kh2 {[%clk 0:02:01]} 20... Nc6 {[%clk 0:01:47.9]} 21.
b3 {[%clk 0:01:55.9]} 21... cxb3 {[%clk 0:01:47.1]} 22. Qxb3 {[%clk 0:01:45.9]}
22... e5 {[%clk 0:01:39.9]} 23. Bxd7+ {[%clk 0:01:31]} 23... Qxd7 {[%clk
0:01:40.8]} 24. dxe5 {[%clk 0:01:00.2]} 24... fxe5 {[%clk 0:01:41.7]} 25. fxe5
{[%clk 0:00:59.7]} 25... Nxe5 {[%clk 0:01:42.2]} 26. Nxe5 {[%clk 0:00:59.4]}
26... Bxe5 {[%clk 0:01:43.1]} 27. Bxh6 {[%clk 0:00:25.3]} 27... Qg4 {[%clk
0:01:42.3]} 28. c4 {[%clk 0:00:10.9]} 28... Qxh4+ {[%clk 0:01:37.6]} 29. Kg2
{[%clk 0:00:10.5]} 29... Qxh6 {[%clk 0:01:38.3]} 30. cxd5 {[%clk 0:00:10]} 30...
Bd6 {[%clk 0:01:33.6]} 31. Rbc1+ {[%clk 0:00:08.8]} 31... Kb8 {[%clk 0:01:33.3]}
32. a4 {[%clk 0:00:08.9]} 32... Qg5 {[%clk 0:01:31.4]} 33. a5 {[%clk 0:00:07.4]}
33... Qxd5+ {[%clk 0:01:30]} 34. Qxd5 {[%clk 0:00:06.5]} 34... Nxd5 {[%clk
0:01:30.9]} 35. Red1 {[%clk 0:00:05.8]} 35... Re5 {[%clk 0:01:27.8]} 36. a6
{[%clk 0:00:01.9]} 36... bxa6 {[%clk 0:01:26.8]} 37. Rc6 {[%clk 0:00:01.1]}
37... Bc7 {[%clk 0:01:25.2]} 0-1

[Event "Early-Titled-Tuesday-Blitz-January-30-2024"]
[Site "Chess.com"]
[Date "2024.01.30"]
[Round "2"]
[White "adotand"]
[Black "GameOverBro"]
[Result "1-0"]
[WhiteElo "2847"]
[BlackElo "2567"]
[TimeControl "180+1"]
[EndTime "8:18:14 PST"]
[Termination "adotand won on time"]

1. Nf3 {[%clk 0:02:58]} 1... c5 {[%clk 0:02:57]} 2. e4 {[%clk 0:02:58.1]} 2...
Nc6 {[%clk 0:02:54.2]} 3. Bc4 {[%clk 0:02:57.9]} 3... g6 {[%clk 0:02:51.2]} 4.
h4 {[%clk 0:02:56.9]} 4... h6 {[%clk 0:02:51]} 5. d3 {[%clk 0:02:56.9]} 5... Bg7
{[%clk 0:02:50.7]} 6. Nc3 {[%clk 0:02:57.6]} 6... e6 {[%clk 0:02:43.3]} 7. Bf4
{[%clk 0:02:55.8]} 7... a6 {[%clk 0:02:38.4]} 8. a4 {[%clk 0:02:53.2]} 8... Nge7
{[%clk 0:02:38.2]} 9. Bd6 {[%clk 0:02:51.6]} 9... b6 {[%clk 0:02:26.2]} 10. O-O
{[%clk 0:02:44.4]} 10... Bb7 {[%clk 0:02:15.1]} 11. h5 {[%clk 0:02:42.6]} 11...
g5 {[%clk 0:02:14.8]} 12. Re1 {[%clk 0:02:36.6]} 12... Nc8 {[%clk 0:02:13.2]}
13. Bg3 {[%clk 0:02:35.7]} 13... d6 {[%clk 0:02:10.7]} 14. Qd2 {[%clk
0:02:25.2]} 14... N8e7 {[%clk 0:02:07.9]} 15. Ba2 {[%clk 0:02:20.4]} 15... Qd7
{[%clk 0:02:02.9]} 16. Nd1 {[%clk 0:02:19.6]} 16... O-O {[%clk 0:01:57.3]} 17.
c3 {[%clk 0:02:19.1]} 17... d5 {[%clk 0:01:54.3]} 18. e5 {[%clk 0:02:15.8]}
18... Nf5 {[%clk 0:01:53.5]} 19. d4 {[%clk 0:02:11.4]} 19... Nxg3 {[%clk
0:01:51.5]} 20. fxg3 {[%clk 0:02:11.9]} 20... f6 {[%clk 0:01:50.5]} 21. Nf2
{[%clk 0:02:10.5]} 21... fxe5 {[%clk 0:01:49.9]} 22. dxe5 {[%clk 0:02:10.2]}
22... Rf5 {[%clk 0:01:44.8]} 23. Ng4 {[%clk 0:02:09.4]} 23... Raf8 {[%clk
0:01:43.9]} 24. Bb1 {[%clk 0:02:02.6]} 24... Rxf3 {[%clk 0:01:34.9]} 25. gxf3
{[%clk 0:02:03.2]} 25... Rxf3 {[%clk 0:01:35.5]} 26. Kg2 {[%clk 0:02:03.8]}
26... d4 {[%clk 0:01:31.2]} 27. Be4 {[%clk 0:02:00.9]} 27... Rf5 {[%clk
0:01:22]} 28. Kh3 {[%clk 0:01:42.2]} 28... Qf7 {[%clk 0:00:34.6]} 29. Nf6+
{[%clk 0:01:42.2]} 29... Bxf6 {[%clk 0:00:32.8]} 30. exf6 {[%clk 0:01:43.1]}
30... Qxh5+ {[%clk 0:00:31.6]} 31. Kg2 {[%clk 0:01:43.6]} 31... Rxf6 {[%clk
0:00:27.6]} 32. Rh1 {[%clk 0:01:42.1]} 32... Qf7 {[%clk 0:00:26.5]} 33. Raf1
{[%clk 0:01:41]} 33... Ne5 {[%clk 0:00:25.6]} 34. Qe1 {[%clk 0:01:30.1]} 34...
Bxe4+ {[%clk 0:00:11.7]} 35. Qxe4 {[%clk 0:01:29.7]} 35... Ng6 {[%clk 0:00:02]}
36. cxd4 {[%clk 0:01:26.5]} 36... cxd4 {[%clk 0:00:01.8]} 37. Rxf6 {[%clk
0:01:21.9]} 37... Qxf6 {[%clk 0:00:02.7]} 38. Rf1 {[%clk 0:01:22.6]} 38... Qg7
{[%clk 0:00:03.2]} 39. Qxe6+ {[%clk 0:01:22.6]} 39... Kh8 {[%clk 0:00:03.8]} 40.
Rf7 {[%clk 0:01:22.8]} 40... Qe5 {[%clk 0:00:03.4]} 41. Qxg6 {[%clk 0:01:18.1]}
41... Qe2+ {[%clk 0:00:03.1]} 42. Rf2 {[%clk 0:01:18.6]} 42... Qe4+ {[%clk
0:00:03.2]} 43. Qxe4 {[%clk 0:01:18.7]} 1-0

[Event "Early-Titled-Tuesday-Blitz-January-30-2024"]
[Site "Chess.com"]
[Date "2024.01.30"]
[Round "2"]
[White "Chernobay_Artem"]
[Black "Sanan_Sjugirov"]
[Result "0-1"]
[WhiteElo "2618"]
[BlackElo "3005"]
[TimeControl "180+1"]
[EndTime "8:18:16 PST"]
[Termination "Sanan_Sjugirov won by resignation"]

1. d4 {[%clk 0:03:00.9]} 1... Nf6 {[%clk 0:02:59.8]} 2. c4 {[%clk 0:03:01.2]}
2... e6 {[%clk 0:02:59.7]} 3. Nf3 {[%clk 0:03:01.5]} 3... d5 {[%clk 0:02:59.6]}
4. g3 {[%clk 0:03:01.7]} 4... Bb4+ {[%clk 0:02:58.9]} 5. Bd2 {[%clk 0:03:00.6]}
5... Be7 {[%clk 0:02:59.3]} 6. Bg2 {[%clk 0:02:59]} 6... c6 {[%clk 0:02:59.8]}
7. Qc2 {[%clk 0:02:58.1]} 7... Nbd7 {[%clk 0:02:57.5]} 8. O-O {[%clk 0:02:56.3]}
8... b6 {[%clk 0:02:57.4]} 9. Rd1 {[%clk 0:02:54.1]} 9... Ba6 {[%clk 0:02:56.8]}
10. b3 {[%clk 0:02:52.8]} 10... O-O {[%clk 0:02:56.1]} 11. a4 {[%clk 0:02:50.7]}
11... Qc8 {[%clk 0:02:40.4]} 12. a5 {[%clk 0:02:40.2]} 12... c5 {[%clk
0:02:09.5]} 13. Na3 {[%clk 0:02:35.7]} 13... Ne4 {[%clk 0:01:58]} 14. Bf4 {[%clk
0:02:18.6]} 14... Qb7 {[%clk 0:01:30.1]} 15. axb6 {[%clk 0:01:54.3]} 15... axb6
{[%clk 0:01:29.8]} 16. Ne5 {[%clk 0:01:39.3]} 16... Ndf6 {[%clk 0:01:17.7]} 17.
Nb5 {[%clk 0:01:26.9]} 17... Bxb5 {[%clk 0:01:00.9]} 18. cxb5 {[%clk 0:01:27.8]}
18... cxd4 {[%clk 0:01:01.2]} 19. Nc6 {[%clk 0:01:25.4]} 19... Nc3 {[%clk
0:00:59.2]} 20. Rxa8 {[%clk 0:01:00.7]} 20... Rxa8 {[%clk 0:01:00.1]} 21. Rxd4
{[%clk 0:01:00.7]} 21... Nxb5 {[%clk 0:00:51.1]} 22. Rb4 {[%clk 0:00:59.1]}
22... Bxb4 {[%clk 0:00:46]} 23. Nxb4 {[%clk 0:00:58.9]} 23... Qe7 {[%clk
0:00:37.4]} 24. Nc6 {[%clk 0:00:54]} 24... Qc5 {[%clk 0:00:35.4]} 25. Qxc5
{[%clk 0:00:44.3]} 25... bxc5 {[%clk 0:00:36.3]} 26. Bf3 {[%clk 0:00:44.1]}
26... Ra1+ {[%clk 0:00:22.1]} 27. Kg2 {[%clk 0:00:43.5]} 27... c4 {[%clk
0:00:22.7]} 28. Be5 {[%clk 0:00:39.3]} 28... c3 {[%clk 0:00:21.9]} 29. e3 {[%clk
0:00:35.1]} 29... c2 {[%clk 0:00:18.6]} 0-1

[Event "Early-Titled-Tuesday-Blitz-January-30-2024"]
[Site "Chess.com"]
[Date "2024.01.30"]
[Round "2"]
[White "ajkom197"]
[Black "Xsu11"]
[Result "1-0"]
[WhiteElo "2551"]
[BlackElo "2334"]
[TimeControl "180+1"]
[EndTime "8:18:18 PST"]
[Termination "ajkom197 won by resignation"]

1. Nf3 {[%clk 0:02:53.8]} 1... g6 {[%clk 0:02:59.3]} 2. d4 {[%clk 0:02:53.6]}
2... Bg7 {[%clk 0:02:59.3]} 3. e3 {[%clk 0:02:54]} 3... c5 {[%clk 0:02:54.7]} 4.
c3 {[%clk 0:02:52.5]} 4... Nf6 {[%clk 0:02:52.3]} 5. Nbd2 {[%clk 0:02:47.9]}
5... b6 {[%clk 0:02:50.5]} 6. Bd3 {[%clk 0:02:44]} 6... Bb7 {[%clk 0:02:50.4]}
7. O-O {[%clk 0:02:43.9]} 7... O-O {[%clk 0:02:49.6]} 8. Re1 {[%clk 0:02:44.3]}
8... d5 {[%clk 0:02:39.5]} 9. Qc2 {[%clk 0:02:23.2]} 9... Nbd7 {[%clk
0:02:38.6]} 10. e4 {[%clk 0:02:20.5]} 10... dxe4 {[%clk 0:02:34.8]} 11. Nxe4
{[%clk 0:02:20.4]} 11... cxd4 {[%clk 0:02:16.9]} 12. Nxd4 {[%clk 0:02:10.5]}
12... e5 {[%clk 0:02:06]} 13. Nb5 {[%clk 0:02:05.9]} 13... Nc5 {[%clk
0:01:52.2]} 14. Nxc5 {[%clk 0:01:54.6]} 14... bxc5 {[%clk 0:01:51.8]} 15. Bf1
{[%clk 0:01:54.8]} 15... e4 {[%clk 0:01:32.2]} 16. Be3 {[%clk 0:01:51.8]} 16...
Qb6 {[%clk 0:01:28.6]} 17. Rad1 {[%clk 0:01:50.1]} 17... Rad8 {[%clk 0:01:25.8]}
18. b4 {[%clk 0:01:45.6]} 18... Nd7 {[%clk 0:00:54.5]} 19. a4 {[%clk 0:01:01]}
19... a6 {[%clk 0:00:51.3]} 20. Nd6 {[%clk 0:00:53.4]} 20... Ba8 {[%clk
0:00:46.1]} 21. a5 {[%clk 0:00:53]} 21... Qc6 {[%clk 0:00:45.1]} 22. b5 {[%clk
0:00:50.7]} 22... axb5 {[%clk 0:00:42.8]} 23. Bxb5 {[%clk 0:00:51.6]} 23... Qc7
{[%clk 0:00:42.5]} 24. a6 {[%clk 0:00:45.9]} 24... f5 {[%clk 0:00:38.4]} 25.
Qa2+ {[%clk 0:00:43]} 25... Kh8 {[%clk 0:00:37.8]} 26. Nf7+ {[%clk 0:00:43.1]}
26... Rxf7 {[%clk 0:00:36.5]} 27. Qxf7 {[%clk 0:00:44]} 27... Bxc3 {[%clk
0:00:33.9]} 28. Bxd7 {[%clk 0:00:37.9]} 28... Bxe1 {[%clk 0:00:22.2]} 29. Qf6+
{[%clk 0:00:37.9]} 29... Kg8 {[%clk 0:00:22.1]} 30. Be6+ {[%clk 0:00:38.1]} 1-0

[Event "Early-Titled-Tuesday-Blitz-January-30-2024"]
[Site "Chess.com"]
[Date "2024.01.30"]
[Round "2"]
[White "Nemegejas"]
[Black "Logman74"]
[Result "1-0"]
[WhiteElo "2859"]
[BlackElo "2573"]
[TimeControl "180+1"]
[EndTime "8:18:19 PST"]
[Termination "Nemegejas won on time"]

1. d4 {[%clk 0:03:00.9]} 1... Nf6 {[%clk 0:02:59]} 2. c4 {[%clk 0:03:01.5]} 2...
e6 {[%clk 0:02:59.3]} 3. Nf3 {[%clk 0:03:00.7]} 3... Bb4+ {[%clk 0:02:59.8]} 4.
Bd2 {[%clk 0:02:59.1]} 4... Qe7 {[%clk 0:02:57.9]} 5. g3 {[%clk 0:02:58.5]} 5...
Nc6 {[%clk 0:02:53.5]} 6. Nc3 {[%clk 0:02:58.1]} 6... O-O {[%clk 0:02:48.4]} 7.
Bg2 {[%clk 0:02:57.8]} 7... d6 {[%clk 0:02:48.8]} 8. d5 {[%clk 0:02:52.3]} 8...
exd5 {[%clk 0:02:45.4]} 9. cxd5 {[%clk 0:02:53.2]} 9... Ne5 {[%clk 0:02:32]} 10.
O-O {[%clk 0:02:50.4]} 10... Bg4 {[%clk 0:02:28]} 11. Qb3 {[%clk 0:02:48.6]}
11... Bxc3 {[%clk 0:01:50.6]} 12. Bxc3 {[%clk 0:02:46.7]} 12... Nxf3+ {[%clk
0:01:40.1]} 13. exf3 {[%clk 0:02:45.8]} 13... Bc8 {[%clk 0:01:39.1]} 14. Rfe1
{[%clk 0:02:44.1]} 14... Qd8 {[%clk 0:01:38.8]} 15. Bxf6 {[%clk 0:02:31.5]}
15... Qxf6 {[%clk 0:01:38.1]} 16. Rac1 {[%clk 0:02:31.6]} 16... c5 {[%clk
0:00:40.7]} 17. dxc6 {[%clk 0:02:30.1]} 17... bxc6 {[%clk 0:00:41.2]} 18. Rxc6
{[%clk 0:02:24.9]} 18... Bd7 {[%clk 0:00:41.5]} 19. Rc7 {[%clk 0:02:09.9]} 19...
Be6 {[%clk 0:00:31]} 20. Qa3 {[%clk 0:02:03.6]} 20... Qd4 {[%clk 0:00:20.1]} 21.
b3 {[%clk 0:01:57.4]} 21... Rac8 {[%clk 0:00:13.3]} 22. Rcc1 {[%clk 0:01:57.1]}
22... Rxc1 {[%clk 0:00:12.1]} 23. Qxc1 {[%clk 0:01:58]} 23... g6 {[%clk
0:00:11.4]} 24. Rd1 {[%clk 0:01:57.8]} 24... Qb6 {[%clk 0:00:11.8]} 25. f4
{[%clk 0:01:57.4]} 25... Rc8 {[%clk 0:00:12]} 26. Qd2 {[%clk 0:01:57.7]} 26...
d5 {[%clk 0:00:10.5]} 27. Bf3 {[%clk 0:01:50.8]} 27... Rd8 {[%clk 0:00:10]} 28.
Qd4 {[%clk 0:01:49.1]} 28... Qa5 {[%clk 0:00:09.9]} 29. Rd2 {[%clk 0:01:32.8]}
29... h5 {[%clk 0:00:10.1]} 30. h4 {[%clk 0:01:32.5]} 30... Qb5 {[%clk 0:00:07]}
31. Qxa7 {[%clk 0:01:21.1]} 31... Bh3 {[%clk 0:00:07.6]} 32. Rd1 {[%clk
0:01:12.6]} 32... d4 {[%clk 0:00:06.8]} 33. Kh2 {[%clk 0:01:06.3]} 33... Bg4
{[%clk 0:00:04.2]} 34. Bxg4 {[%clk 0:01:00.6]} 34... hxg4 {[%clk 0:00:03.9]} 35.
Rxd4 {[%clk 0:01:01.2]} 35... Re8 {[%clk 0:00:03.4]} 36. Qd7 {[%clk 0:01:00.7]}
1-0